Cogmind - Beta 15 @@@ ROGUE MODE // 2025.05.13 @ 20:09:38 Player: Epsilon 11 Result: Destroyed by T0-FV6(R) with Subdweller Laser Performance ------------- Evolutions (0) 0 Regions Visited (2) 400 Robots Destroyed (11) 55 Value Destroyed (362) 362 Prototype IDs (0) 0 Alien Tech Used (0) 0 Bonus (0) 0 TOTAL SCORE: 817 Bonus ------- None Cogmind --------- Core Integrity 0/250 Matter 152/300 Energy 250/250 System Corruption 0% Temperature Cool (6) Movement Rolling (190) Ox6 Location -10/Subcaves Parts ------- > --- POWER (1) -------- Ion Engine > --- PROPULSION (2) --- Compact Wheel > --- UTILITY (2) ------ Huge Storage Unit Seismic Detector > --- WEAPON (2) ------- Subdweller Beam Cannon Battle Cannon > --- INVENTORY (25) --- Subdweller Monowheel Subdweller Monowheel Subdweller Monowheel Disposable Heat Sink High-capacity Storage Unit Weapon Shielding Light Assault Rifle Battle Cannon Grenade Launcher Peak State ------------ > --- POWER ------------ Ion Engine > --- PROPULSION ------- Wheel Compact Wheel > --- UTILITY ---------- Huge Storage Unit Seismic Detector > --- WEAPON ----------- Subdweller Beam Cannon Battle Cannon > --- INVENTORY -------- Subdweller Monowheel Subdweller Monowheel High-capacity Storage Unit Weapon Shielding Light Assault Rifle Battle Cannon Grenade Launcher Shrapnel Trap [Rating: 10] Favorites ----------- Power Ion Engine Engine Ion Engine Propulsion Compact Wheel Wheel Compact Wheel Utility Seismic Detector Device Seismic Detector Storage Huge Storage Unit Weapon Light Assault Rifle Energy Cannon Subdweller Beam Cannon Ballistic Gun Light Assault Rifle Ballistic Cannon Battle Cannon Launcher Grenade Launcher Build | -11 -10 -10 ------- Run | Yrd Mat Sub Slots Evolved . | . . . Power . | . . . Propulsion . | . . . Utility . | . . . Weapon . | . . . Parts Attached 14 | 6 4 4 Power 2 | 1 . 1 Engine 2 | 1 . 1 Core . | . . . Reactor . | . . . Propulsion 3 | 2 . 1 Treads . | . . . Leg . | . . . Wheel 3 | 2 . 1 Hover . | . . . Flight . | . . . Utility 4 | 1 3 . Device 1 | . 1 . Storage 3 | 1 2 . Processor . | . . . Hackware . | . . . Protection . | . . . Artifact . | . . . Weapon 5 | 2 1 2 Energy Gun . | . . . Energy Cannon 1 | . . 1 Ballistic Gun 2 | 2 . . Ballistic Cannon 1 | . . 1 Launcher 1 | . 1 . Special Weapon . | . . . Impact Weapon . | . . . Slashing Weapon . | . . . Piercing Weapon . | . . . Special Melee Weapon . | . . . Unidentified Prototypes . | . . . Parts Lost 4 | . . 4 Power 1 | . . 1 Propulsion 2 | . . 2 Utility . | . . . Weapon 1 | . . 1 Highest Loss Streak 3 | . . 3 To Critical Strikes . | . . . Average Backups 4 | . 3 6 Power . | . 1 . Propulsion . | . . 1 Utility 1 | . 1 2 Weapon 1 | . 1 1 Tool/Special . | . . . Unused Backups 6 | . . 6 Power . | . . . Propulsion 3 | . . 3 Utility 2 | . . 2 Weapon 1 | . . 1 Tool/Special . | . . . Average Slot Usage (%) 94 | . 96 93 Engine 11 | . 14 9 Wheel 27 | . 28 26 Device 13 | . 11 14 Storage 14 | . 14 14 Energy Cannon 3 | . . 6 Ballistic Gun 14 | . 20 8 Ballistic Cannon 2 | . . 3 Launcher 7 | . 6 8 Peak Build Rating 10 | 6 7 10 Average Rating 6 | 4 6 7 On Entrance 4 | . 6 7 Naked Turns . | . . . Heaviest Build 97 | 12 90 97 Greatest Support 26 | 26 26 26 Greatest Overweight (x) 5 | . 3 5 Average Overweight (x) 1 | . 1 3 Largest Inventory Capacity 25 | 8 25 25 Average Capacity 21 | 7 20 25 Most Carried 10 | 1 4 10 Average Carried 4 | . 3 6 Final Capacity 25 | 8 25 25 Final Carried 9 | 1 4 9 Class Distribution -------------------- 100% | Mutant Dominant Class ---------------- Mutant | -10/Materials Mutant | -10/Subcaves Resources | -11 -10 -10 ----------- Run | Yrd Mat Sub Matter Collected 405 | 238 11 156 Remotely . | . . . Salvage Created 241 | . 132 109 Parts 15 | . 8 7 Haulers Intercepted . | . . . Recyclers Shooed 1 | . 1 . Parts Field Recycled . | . . . Retrieved Matter . | . . . Parts Self-Destructed . | . . . Prevented . | . . . Kills | -11 -10 -10 ------- Run | Yrd Mat Sub Combat Hostiles Destroyed 11 | . 7 4 Guns 1 | . 1 . Cannons 1 | . . 1 AOE 9 | . 6 3 Classes Destroyed 4 | . 2 2 Swarmer 3 | . 3 . Grunt 4 | . 4 . Artisan 2 | . . 2 Subdweller 4 | . . 4 Best Kill Streak 4 | . 4 2 Combat Bots Only 4 | . 4 2 Max Kills in Single Turn 3 | . 3 1 Gunslinging . | . . . Exploded 3 | . 3 1 Melee . | . . . Uniques/NPCs Destroyed . | . . . Combat | -11 -10 -10 -------- Run | Yrd Mat Sub Hostile Shots Fired 41 | . 23 18 Missed 13 | . 11 2 Hits 28 | . 12 16 Projectile 28 | . 12 16 AOE 5 | . . 5 Damage Taken 717 | . 158 559 Core 255 | . 58 197 Absorbed by Shields . | . . . Core Remaining (%) 100 | 100 . . Volleys Fired 34 | . 14 20 Largest 2 | . 2 2 Hottest 113 | . 50 113 Shots Fired 55 | . 22 33 Gun 28 | . 15 13 Cannon 13 | . . 13 Launcher 14 | . 7 7 Special . | . . . Kinetic 33 | . 15 18 Thermal 8 | . . 8 Explosive 14 | . 7 7 Electromagnetic . | . . . Robot Hit Streak 6 | . 4 6 Robot Miss Streak 4 | . 3 4 Penetration Max . | . . . Secondary Targets . | . . . Shots Hit Robots 30 | . 11 19 Core Hits 22 | . 13 9 Critical Kills . | . . . Critical Parts Destroyed 1 | . 1 . Critical Strikes 2 | . 1 1 Destroy 1 | . 1 . Blast 1 | . . 1 Melee Attacks . | . . . Impact . | . . . Slashing . | . . . Piercing . | . . . Sneak Attacks . | . . . Combat Hostiles . | . . . Follow-up Attacks . | . . . Damage Inflicted 1045 | . 509 536 Guns 155 | . 94 61 Cannons 170 | . . 170 Explosions 720 | . 415 305 Melee . | . . . Ramming . | . . . Kinetic 244 | . 94 150 Thermal 81 | . . 81 Explosive 720 | . 415 305 Electromagnetic . | . . . Impact . | . . . Slashing . | . . . Piercing . | . . . Highest Corruption . | . . . Average Corruption . | . . . Corruption Purged . | . . . Corruption Blocked . | . . . Overload Shots . | . . . Overflow Damage . | . . . Projectiles . | . . . Explosions . | . . . Melee . | . . . Knockbacks . | . . . Impact . | . . . Kinetic . | . . . Secondary . | . . . Self-Inflicted Damage 52 | . 23 29 Shots 4 | . 1 3 Rammed . | . . . Targets Rammed . | . . . Kicked . | . . . Crushed . | . . . Highest Temperature 14 | . 14 . Average Temperature 6 | . 6 . Received Heat Transfer 87 | . 60 27 Siege Activations . | . . . Martial Activations . | . . . Shielding Activations . | . . . Robots Disrupted . | . . . Combat Hostiles . | . . . Robots Corrupted . | . . . Combat Hostiles . | . . . Parts Fried . | . . . Impact Corruptions . | . . . Robots Melted . | . . . Combat Hostiles . | . . . Parts Melted . | . . . Heat Transferred 111 | . . 111 Parts Sabotaged . | . . . Parts Stolen . | . . . Parts Stripped . | . . . Power Chain Reactions . | . . . Alert | -11 -10 -10 ------- Run | Yrd Mat Sub Maximum Alert Level . | . . . Low Security (%) 100 | 100 100 . Level 1 . | . . . Level 2 . | . . . Level 3 . | . . . Level 4 . | . . . Level 5 . | . . . High Security . | . . . Max Security . | . . . Peak Influence 164 | . 164 . Initial . | . . . Average 76 | . 93 . Influence Increases 214 | . 214 . Destroy 0b10 Robot/C 140 | . 140 . Destroy Leader 30 | . 30 . Disable Machine 15 | . 15 . Destroy Structure 29 | . 29 . Influence Decreases 214 | . 110 104 Entered New Map 51 | . . 51 Time Decay 160 | . 110 50 Lost Part 3 | . . 3 Squads Dispatched . | . . . Investigation . | . . . Extermination . | . . . Reinforcement . | . . . Assault . | . . . Garrison . | . . . Intercept . | . . . Searches Triggered . | . . . Construction Impeded . | . . . Haulers Reinforced . | . . . Active Scanning Responses . | . . . Cargo Convoy Interrupts . | . . . Stealth | -11 -10 -10 --------- Run | Yrd Mat Sub Distress Signals 1 | . 1 . Communications Jammed . | . . . Distress Signals . | . . . Times Spotted 16 | . 9 7 Peak Tracking Total 5 | . 5 2 Tactical Retreats . | . . . Traps | -11 -10 -10 ------- Run | Yrd Mat Sub Traps Triggered . | . . . Indirectly . | . . . Trap Hack Attempts . | . . . Triggered . | . . . Disarmed . | . . . Reprogrammed . | . . . Reused . | . . . Traps Extracted . | . . . Installed 1 | . . 1 Triggered . | . . . Most Traps Carried 1 | . . 1 Machines | -11 -10 -10 ---------- Run | Yrd Mat Sub Machines Disabled 1 | . 1 . Max in Single Turn 1 | . 1 . Machines Repaired . | . . . Machines Dismantled . | . . . Machines Sabotaged . | . . . Overloaded Fab Kills . | . . . Hacking | -11 -10 -10 --------- Run | Yrd Mat Sub Machines Accessed 1 | . 1 . Terminals 1 | . 1 . Fabricators . | . . . Repair Stations . | . . . Recycling Units . | . . . Scanalyzers . | . . . Garrison Access . | . . . Total Hacks 3 | . 3 . Successful . | . . . Failed 3 | . 3 . Catastrophic . | . . . Database Lockouts . | . . . Manual 3 | . 3 . Terminals 3 | . 3 . Fabricators . | . . . Repair Stations . | . . . Recycling Units . | . . . Scanalyzers . | . . . Garrison Access . | . . . Terminal Hacks . | . . . Fabricator Hacks . | . . . Repair Station Hacks . | . . . Recycling Unit Hacks . | . . . Scanalyzer . | . . . Garrison Access Hacks . | . . . Unauthorized Hacks . | . . . Terminals . | . . . Fabricators . | . . . Repair Stations . | . . . Recycling Units . | . . . Scanalyzers . | . . . Garrison Access . | . . . Data Cores Recovered . | . . . Used . | . . . Hacking Detections 1 | . 1 . Full Trace Events . | . . . Feedback Events . | . . . Feedback Blocked . | . . . Robot Schematics Acquired . | . . . Robots Built . | . . . Authchips . | . . . Time . | . . . Total Robot Build Rating . | . . . Part Schematics Acquired . | . . . Parts Built . | . . . Authchips . | . . . Time . | . . . Total Part Build Rating . | . . . Parts Repaired . | . . . Time . | . . . Parts Recycled . | . . . Recycled Matter . | . . . Retrieved Matter . | . . . Retrieved Components . | . . . Parts Scanalyzed . | . . . Part Schematics Acquired . | . . . Parts Damaged . | . . . Bothacking | -11 -10 -10 ------------ Run | Yrd Mat Sub Used RIF Installer . | . . . Robots Hacked . | . . . Non-combat . | . . . Combat . | . . . Robot Hacks Applied . | . . . Relay Couplers Released . | . . . Fabnet Peak Effective % . | . . . Robots Rewired . | . . . Allies Hacked . | . . . Hacks Repelled . | . . . Allies | -11 -10 -10 -------- Run | Yrd Mat Sub Total Allies . | . . . Largest Group . | . . . Highest-Rated Group . | . . . Highest-Rated Ally . | . . . Total Orders . | . . . Ally Attacks . | . . . Total Damage . | . . . Kills . | . . . Allies Corrupted . | . . . Allies Melted . | . . . Intel | -11 -10 -10 ------- Run | Yrd Mat Sub Active Infowar (turns) 506 | . 232 274 Seismic 506 | . 232 274 Robot Analysis Total . | . . . Derelict Logs Recovered 2 | . . 2 Drone Launches . | . . . Drone Recoveries . | . . . Exploration | -11 -10 -10 ------------- Run | Yrd Mat Sub Turns Passed 591 | 57 260 274 Spaces Moved 368 | 54 167 147 Core 2 | 2 . . Treads . | . . . Legs . | . . . Wheels 366 | 52 167 147 Hover . | . . . Flight . | . . . Fastest Speed 50 | 50 90 135 Average Speed 119 | 88 112 138 Slowest Speed 175 | 90 135 175 Overloaded Moves . | . . . Propulsion Burnouts . | . . . Robots Hopped . | . . . Potential Cave-ins . | . . . Cave-ins Triggered . | . . . Exploration Rate (%) 18 | 3 35 17 Regions Visited 2 Branch Regions 1 Pre-discovered Areas . | . . . Known Exits Taken . | . . . Unknown Exits Taken 2 | 1 1 . Scrap Searched 2 | . . 2 Spaces Dug . | . . . Terrain Destroyed 74 | . 38 36 Melee . | . . . Projectile 1 | . . 1 AOE 73 | . 38 35 Terrain Rammed . | . . . Walls Destroyed . | . . . Machines Disabled . | . . . Actions | -11 -10 -10 --------- Run | Yrd Mat Sub Total 465 | 60 219 186 Wait 30 | . 28 2 Move 366 | 53 166 147 Hop . | . . . Pick Up 12 | 1 2 9 Fast Attach 8 | 6 2 . Attach 4 | . 1 3 Detach 2 | . 2 . Swap 6 | . 3 3 Drop 2 | . 1 1 Fire 34 | . 14 20 Melee . | . . . Ram . | . . . Kick . | . . . Crush . | . . . Escape Stasis . | . . . Rewire . | . . . Trap 1 | . . 1 Miscellaneous . | . . . Route ------- -11/Scrapyard -10/Materials (discovered 2 exits: [*Mat] / [*Sub]) -10/Subcaves History --------- Turn | Location | Event 6 | -11/Scrapyard | Discovered new exit (range 15) 58 | -11/Scrapyard | Entered Materials 171 | -10/Materials | Discovered new exit (range 16) 306 | -10/Materials | Discovered new exit (range 8) 315 | -10/Materials | Build established: Mutant 318 | -10/Materials | Entered Subcaves 322 | -10/Subcaves | Ambushed by Subdwellers from Twisted Machinery 336 | -10/Subcaves | Learned Materials stockpile data 419 | -10/Subcaves | Ambushed by angry Subdweller bent on revenge 422 | -10/Subcaves | Ambushed by Subdweller buried in earth 423 | -10/Subcaves | Core integrity fell below 50% 427 | -10/Subcaves | Core integrity fell below 20% 457 | -10/Subcaves | Lost 3 parts (1p1n1w) 510 | -10/Subcaves | Disturbed a concealed Subdweller 592 | -10/Subcaves | Destroyed by T0-FV6(R) with Subdweller Laser Last Messages --------------- 00518_ EF-AFV(R) Disposable Heat Sink blasted off. 00519_ EF-AFV(R) affixes Scrap Shield Fragment to Scrap Shield. 00524_ EF-AFV(R) destroyed. 00529_ Subatomizers dissect the Disposable Heat Sink. 00530_ Acquired 14 matter. 00532_ Searching scrap... 00532_ Found Shrapnel Trap. 00532_ Found Battle Cannon. 00532_ Found 38 Matter. 00533_ Acquired 38 matter. 00534_ Acquired Shrapnel Trap. 00535_ Acquired 5 matter. 00539_ Acquired Battle Cannon. 00540_ Subatomizers dissect the Disposable Heat Sink. 00542_ Acquired Sub. Monowheel. 00544_ Acquired Disposable Heat Sink. 00546_ Acquired 5 matter. 00575_ Dropped Shrapnel Trap. 00575_ Installed Shrapnel Trap. 00591_ Wheel destroyed. Map ----- +----------------------------------------------------+ | ?????????????????????????????????????????????????? | | ?????????????????????????????????????????????????? | | ?????????????????????????????????????????????????? | | ?????????????????????????????????????????????????? | | ?????????????????????????????????????????????????? | | ?????????????????????????????????????????????????? | | ?????????????????????????????????????????????????? | | ?????????????????????????????????????????????????? | | ?????????????????????????????????????????????????? | | ?????????????????????????????????????????????????? | | ?????????????????????????????????????????????????? | | ?????????????????????????????????????????????????? | | ?????????????????????????????????????????????????? | | ?????????????????????????????????????????????????? | | ?????????????????????????????????????????????????? | | ?????????????????????????????????????????????????? | | ??????????????????????######?????????????????????? | | ??????????????????????# #?????????????????????? | | ??????????????????????# ?????????????????????? | | ??????????????????????? ??????????????????????? | | ??????????????????????? ??????????????????????? | | ??????????????????????## ??????????????????????? | | ??????????????????????? ??????????????????????? | | ??????????????????????## ##?????????????????????? | | ??????????????????????# #?????????????????????? | | ???????????????????????# @#??????????????????????? | | ???????????????????????# ##?????????????????????? | | ???????????????????????# #?????????????????????? | | ???????????????????????# ##????????????????????? | | ???????????????????????# #????????????????????? | | ???????????????????????# ##????????????????????? | | ???????????????????????## #????????????????????? | | ???????????????????????# ##????????????????????? | | ???????????????????????# #?????? #????????????? | | ???????????????????????# ##????? #????????????? | | ???????????????????????##RR##???? #?? ???????? | | ???????????????????????# ###?# # ???????? | | ???????????????????###### ^ ## ??????? | | ???????????????????#" #### ??????? | | ???????????????????## "# #< # ???????? | | ????????????????????# &# ### ###????????????? | | ????????????????????# # #" #???#??????????????? | | ????????????????????## "## #??????????????????? | | ?????????????????????### ##?????????????????? | | ??????????????????????# ######????????????? | | ??????????????????????# #????????????? | | ??????????????????????## #????????????? | | ???????????????????????### ## ##????????????? | | ?????????????????????????# ######?????????????? | | ???????????????????????### ##??????????????????? | +----------------------------------------------------+ Best States ------------- Heat Dissipation 25 Energy Generation 10 Energy Capacity 250 Matter Stores 278 Matter Capacity 300 Sight Range 16 Terrain Scan Density 10 Evasion (%) 42 Item Schematics ----------------- None Robot Schematics ------------------ None Fabricated ------------ Nothing Repaired ---------- Nothing Alien Tech Used ----------------- None Achievements -------------- None Challenges ------------ None Game ------ Seed SubdwellerMasterBlade Manual? 0 Play Time 00:09:15 Cumulative 227.6 hours Start 2025.05.13 @ 20:03:03 End 2025.05.13 @ 20:09:38 Sessions 1 Manual Loads 0 Difficulty Rogue Special Mode None Game No. 104 Rogue 61 Adventurer 43 Explorer 0 Win Type - Total 6 Types 4/0/1/0/0/0/0/1/0/0 Lore% 69 Gallery% 66 Achievement% 61 Wizard Run 0 Options --------- Layout 0 ASCII 0 Keyboard 0 Movement Mouse Keybinds 0 Fullscreen 1 Font 24/Smallcaps Map View 76x50 Zoom Use 0% Tactical HUD 1 Map Filters NONE Filters NONE Steam 1 RUN: d13b54c1-6961-4fb0-92c3-101b1b15c961